bitfinex-derivatives/quotes_SOLF0:USTF0_20260204
["timestamp","ask_amount","ask_price","bid_price","bid_amount"]
[1770188050225,7.44535485,98.399,98.341,77.86749502]
[1770188050429,9.1586,98.4,98.341,77.86749502]
[1770188050630,7.44535485,98.399,98.341,77.86749502]
[1770188050827,9.1586,98.4,98.341,77.86749502]
[1770188051024,7.44535545,98.399,98.341,77.86749502]
[1770188051225,7.45650718,98.398,98.341,77.86749502]
[1770188051425,7.45650718,98.397,98.341,77.86749502]
[1770188051624,7.45650718,98.396,98.341,77.86749502]
[1770188051923,7.45650718,98.395,98.341,77.86749502]
[1770188052127,7.45650718,98.394,98.341,77.86749502]
[1770188052329,7.45650718,98.393,98.341,77.86749502]
[1770188052626,7.45650718,98.392,98.341,77.86749502]
[1770188052827,7.45650718,98.391,98.341,77.86749502]
[1770188053022,7.45650718,98.39,98.341,77.86749502]
[1770188053218,7.45650718,98.389,98.341,77.86749502]
[1770188053420,7.45650718,98.388,98.341,77.86749502]
[1770188053623,7.45650718,98.387,98.341,77.86749502]
[1770188053927,7.45650718,98.386,98.341,77.86749502]
[1770188054128,7.45650718,98.385,98.341,77.86749502]
[1770188054329,7.45650718,98.384,98.341,77.86749502]
[1770188054524,7.45650718,98.383,98.341,77.86749502]
[1770188054720,7.45650718,98.382,98.341,77.86749502]
[1770188054918,7.45650718,98.381,98.341,77.86749502]
[1770188055123,7.45650718,98.38,98.341,77.86749502]
[1770188055322,7.45650718,98.379,98.341,77.86749502]
[1770188055521,7.45650718,98.378,98.341,77.86749502]
[1770188055722,8.27097679,98.41,98.325,405.6]
[1770188055723,9.33184711,98.406,98.348,77.86749502]
[1770188055930,9.33184711,98.426,98.35,77.86749502]
[1770188056123,9.33184711,98.427,98.35,77.86749502]
[1770188056431,9.33184711,98.427,98.325,142.5759]
[1770188056432,86.27788729,98.407,98.327,77.86749502]
[1770188057232,76.94604018,98.386,98.318,77.86749502]
[1770188057424,76.94604018,98.382,98.318,77.86749502]
[1770188058131,9.1616,98.368,98.318,77.86749502]
[1770188060132,8.27097679,98.37,98.318,77.86749502]
[1770188060334,76.94604018,98.369,98.273,77.86749502]
[1770188060626,76.94604018,98.369,98.276,77.86749502]
[1770188060822,9.1631,98.352,98.278,75.7870814]
[1770188061028,84.2194239,98.352,98.278,75.7870814]
[1770188061528,84.2194239,98.352,98.292,75.7870814]
[1770188063838,9.1642,98.341,98.292,75.7870814]
[1770188067534,84.2205239,98.341,98.292,75.7870814]
[1770188067735,9.1646,98.336,98.292,75.7870814]
[1770188067936,7.45711633,98.335,98.292,75.7870814]
[1770188068137,75.0563239,98.341,98.292,75.7870814]
[1770188068336,82.51115925,98.34,98.292,75.7870814]
[1770188068536,150.81267679,98.35,98.292,75.7870814]
[1770188068537,82.51115925,98.339,98.292,75.7870814]
[1770188068728,82.51115925,98.338,98.292,75.7870814]
[1770188068932,7.45483535,98.337,98.292,75.7870814]
[1770188069135,7.45483535,98.336,98.292,75.7870814]
[1770188069335,9.1648,98.334,98.292,75.7870814]
[1770188069535,7.45483535,98.333,98.292,75.7870814]
[1770188069734,75.0563239,98.338,98.292,75.7870814]
[1770188069938,7.45258787,98.337,98.292,75.7870814]
[1770188070139,7.45258787,98.336,98.292,75.7870814]
[1770188070432,82.50891177,98.335,98.292,75.7870814]
[1770188070633,75.0563239,98.331,98.271,75.7870814]
[1770188071740,9.1655,98.327,98.271,75.7870814]
[1770188072040,9.1655,98.327,98.235,152.8871]
[1770188072041,75.0563239,98.348,98.273,75.7870814]
[1770188072242,7.44644354,98.347,98.273,75.7870814]
[1770188072441,7.44644354,98.346,98.273,75.7870814]
[1770188072735,75.0563239,98.348,98.273,75.7870814]
[1770188072937,7.44597391,98.347,98.273,75.7870814]
[1770188073136,7.44597391,98.346,98.275,75.7870814]
[1770188073336,75.0563239,98.348,98.275,75.7870814]
[1770188073542,7.44504529,98.347,98.275,75.7870814]
[1770188073740,9.1645,98.337,98.275,75.7870814]
[1770188075945,9.1655,98.327,98.275,75.7870814]
[1770188076342,9.1655,98.327,98.281,75.7870814]
[1770188076939,3.31260346,98.32,98.281,75.7870814]
[1770188077241,3.31260346,98.31,98.281,43.2680814]
[1770188077444,3.31260346,98.31,98.281,17.01733332]
[1770188077639,3.31260346,98.3,98.24,3.31260346]
[1770188078043,3.31260346,98.29,98.239,405.78]
[1770188078445,75.0563239,98.309,98.239,405.78]
[1770188078646,75.0563239,98.307,98.239,405.78]
[1770188079451,9.168,98.3,98.239,405.78]
[1770188079651,9.168,98.3,98.24,75.7870814]
[1770188084043,75.0563239,98.299,98.239,405.78]
[1770188084244,142.5936,98.314,98.166,75.7870814]
[1770188084245,142.7028,98.239,98.166,75.7870814]
[1770188084443,83.34517169,98.23,98.166,75.7870814]
[1770188084646,83.34517169,98.23,98.135,75.7870814]
[1770188084851,75.0563239,98.228,98.152,75.7870814]
[1770188085149,75.0563239,98.228,98.159,75.7870814]
[1770188085544,92.51877169,98.24,98.159,75.7870814]
[1770188086355,75.0563239,98.213,98.159,75.7870814]
[1770188087455,75.0563239,98.232,98.159,75.7870814]
[1770188089047,8.28884779,98.24,98.165,75.7870814]
[1770188089655,9.1732,98.245,98.165,75.7870814]
[1770188091255,151.8669,98.245,98.165,75.7870814]
[1770188091454,224.46521452,98.245,98.165,75.7870814]
[1770188091653,9.1737,98.239,98.165,75.7870814]
[1770188091957,72.59831452,98.244,98.165,75.7870814]
[1770188093759,72.59831452,98.244,98.169,71.38290044]
[1770188094258,72.59831452,98.244,98.169,80.56300044]
[1770188095848,81.77021452,98.258,98.169,80.56300044]
[1770188096060,81.77021452,98.258,98.177,71.38290044]
[1770188097460,81.77021452,98.258,98.181,77.70197215]
[1770188098959,81.77021452,98.258,98.184,77.70197215]
[1770188100460,81.77021452,98.258,98.186,77.70197215]
[1770188100667,9.1709,98.269,98.191,77.70197215]
[1770188100866,72.16950396,98.272,98.194,77.70197215]
[1770188101067,72.16950396,98.267,98.203,77.70197215]
[1770188101257,72.16950396,98.256,98.188,77.70197215]
[1770188102766,72.16950396,98.256,98.191,77.70197215]
[1770188103363,72.16950396,98.256,98.197,77.70197215]
[1770188103670,9.44917788,98.324,98.181,142.7862]
[1770188103671,72.16950396,98.287,98.215,77.70197215]
[1770188104560,72.16950396,98.285,98.224,77.70197215]
[1770188105471,72.16950396,98.285,98.226,77.70197215]
[1770188106169,8.06686366,98.284,98.226,77.70197215]
[1770188106462,72.16950396,98.285,98.226,77.70197215]
[1770188106667,72.16950396,98.285,98.228,77.70197215]
[1770188106864,72.16950396,98.279,98.213,77.70197215]
[1770188107065,72.16950396,98.277,98.213,77.70197215]
[1770188107266,72.16950396,98.275,98.213,77.70197215]
[1770188107468,81.34000396,98.273,98.213,77.70197215]
[1770188107667,72.16950396,98.271,98.213,77.70197215]
[1770188107963,72.16950396,98.269,98.213,77.70197215]
[1770188108166,8.07045893,98.268,98.213,77.70197215]
[1770188108370,72.16950396,98.269,98.215,77.70197215]
[1770188108566,80.24346471,98.268,98.215,77.70197215]
[1770188108770,72.16950396,98.268,98.215,77.70197215]
[1770188110266,72.16950396,98.264,98.2,77.70197215]
[1770188110472,72.16950396,98.259,98.2,77.70197215]
[1770188110771,72.16950396,98.257,98.2,77.70197215]
[1770188110968,72.16950396,98.251,98.2,77.70197215]
[1770188111272,72.16950396,98.249,98.2,77.70197215]
[1770188111472,8.0812742,98.248,98.2,77.70197215]
[1770188111770,72.16950396,98.249,98.2,77.70197215]
[1770188112072,8.08210159,98.248,98.2,77.70197215]
[1770188112272,72.16950396,98.249,98.2,77.70197215]
[1770188112468,8.08432912,98.248,98.2,77.70197215]
[1770188112770,72.16950396,98.249,98.2,77.70197215]
[1770188112971,80.25383273,98.248,98.2,77.70197215]
[1770188113173,8.08591614,98.247,98.2,77.70197215]
[1770188113373,72.16950396,98.248,98.2,77.70197215]
[1770188113671,8.08679723,98.247,98.2,77.70197215]
[1770188113871,72.16950396,98.248,98.2,77.70197215]
[1770188114072,8.08679723,98.247,98.2,77.70197215]
[1770188114271,8.08679723,98.246,98.2,77.70197215]
[1770188114467,72.16950396,98.248,98.2,77.70197215]
[1770188114673,8.08919007,98.247,98.2,77.70197215]
[1770188114868,8.08919007,98.246,98.2,77.70197215]
[1770188115074,8.09084363,98.245,98.2,77.70197215]
[1770188115275,72.16950396,98.248,98.2,77.70197215]
[1770188115474,8.09175674,98.247,98.2,77.70197215]
[1770188115678,8.09175674,98.246,98.2,77.70197215]
[1770188115976,8.09175674,98.245,98.2,77.70197215]
[1770188116176,72.16950396,98.248,98.2,77.70197215]
[1770188116377,8.09364895,98.247,98.2,77.70197215]
[1770188116671,8.09364895,98.246,98.2,77.70197215]
[1770188116975,8.09364895,98.245,98.2,77.70197215]
[1770188117276,8.09729317,98.244,98.2,77.70197215]
[1770188117481,72.16950396,98.248,98.2,77.70197215]
[1770188117781,8.09821371,98.247,98.2,77.70197215]
[1770188117981,72.16950396,98.248,98.2,77.70197215]
[1770188118177,8.10179637,98.247,98.2,77.70197215]
[1770188118382,8.10273378,98.246,98.2,77.70197215]
[1770188118581,8.10273378,98.245,98.2,77.70197215]
[1770188118776,8.10273378,98.244,98.2,77.70197215]
[1770188118981,8.10273378,98.243,98.2,77.70197215]
[1770188119180,8.10273378,98.242,98.2,77.70197215]
[1770188119482,8.10273378,98.241,98.2,77.70197215]
[1770188119682,8.10273378,98.24,98.2,77.70197215]
[1770188119882,72.16950396,98.248,98.2,77.70197215]
[1770188120082,8.10853269,98.247,98.2,77.70197215]
[1770188120278,8.10853269,98.246,98.2,77.70197215]
[1770188120483,72.16950396,98.247,98.2,77.70197215]
[1770188120484,3.31927032,98.24,98.2,77.70197215]
[1770188120684,8.10853269,98.239,98.2,77.70197215]
[1770188120884,8.10853269,98.238,98.2,77.70197215]
[1770188121081,8.10853269,98.237,98.2,77.70197215]
[1770188121283,8.10853269,98.236,98.2,77.70197215]
[1770188121585,8.10853269,98.235,98.2,77.70197215]
[1770188121786,8.10853269,98.234,98.2,77.70197215]
[1770188121987,8.12155039,98.233,98.2,77.70197215]
[1770188122286,3.31927032,98.24,98.2,77.70197215]
[1770188122287,8.12155039,98.232,98.2,77.70197215]
[1770188122486,8.12155039,98.231,98.2,77.70197215]
[1770188122686,8.12155039,98.23,98.2,77.70197215]
[1770188122889,8.12155039,98.229,98.2,77.70197215]
[1770188123091,8.12939087,98.228,98.2,77.70197215]
[1770188123286,3.31927032,98.24,98.2,77.70197215]
[1770188123592,8.13003058,98.239,98.2,77.70197215]
[1770188123787,8.13003058,98.238,98.201,9.1772]
[1770188124091,8.13003058,98.237,98.201,9.1772]
[1770188124281,8.13003058,98.236,98.201,9.1772]
[1770188124487,8.13003058,98.235,98.201,9.1772]
[1770188124685,8.13003058,98.234,98.201,9.1772]
[1770188124890,8.13003058,98.233,98.201,9.1772]
[1770188125089,8.13003058,98.232,98.201,9.1772]
[1770188125283,3.31927032,98.24,98.201,9.1772]
[1770188125284,8.13003058,98.231,98.201,9.1772]
[1770188125488,8.13003058,98.23,98.201,9.1772]
[1770188125789,8.13003058,98.229,98.201,9.1772]
[1770188125984,8.13003058,98.228,98.201,9.1772]
[1770188126180,3.31927032,98.24,98.201,9.1772]
[1770188126380,8.13723987,98.239,98.201,9.1772]
[1770188126581,3.31927032,98.24,98.201,9.1772]
[1770188126582,8.13723987,98.238,98.201,9.1772]
[1770188126786,8.13723987,98.237,98.201,9.1772]
[1770188126987,8.13723987,98.236,98.201,9.1772]
[1770188127190,8.13723987,98.235,98.201,9.1772]
[1770188127389,8.13723987,98.234,98.201,9.1772]
[1770188127590,8.13723987,98.233,98.201,9.1772]
[1770188127789,8.13723987,98.233,98.2,77.70197215]
[1770188127790,8.13723987,98.232,98.2,77.70197215]
[1770188127986,8.13723987,98.231,98.2,77.70197215]
[1770188128286,8.13723987,98.23,98.2,77.70197215]
[1770188128491,8.13723987,98.229,98.2,77.70197215]
[1770188128690,8.13723987,98.228,98.2,77.70197215]
[1770188128887,8.13723987,98.227,98.2,77.70197215]
[1770188129092,8.13723987,98.226,98.2,77.70197215]
[1770188129298,8.13723987,98.225,98.2,77.70197215]
[1770188129591,8.13723987,98.224,98.2,77.70197215]
[1770188129788,8.13723987,98.223,98.2,77.70197215]
[1770188129989,8.13723987,98.222,98.2,77.70197215]
[1770188130185,3.31927032,98.22,98.2,77.70197215]
[1770188130395,8.13723987,98.219,98.2,77.70197215]
[1770188130590,8.13723987,98.218,98.2,77.70197215]
[1770188130790,3.31927032,98.22,98.2,77.70197215]
[1770188130791,8.13723987,98.217,98.2,77.70197215]
[1770188131092,8.13723987,98.216,98.2,77.70197215]
[1770188131291,8.13723987,98.215,98.2,77.70197215]
[1770188131592,8.13723987,98.214,98.2,77.70197215]
[1770188131785,8.13723987,98.213,98.2,77.70197215]
[1770188131984,8.13723987,98.212,98.2,77.70197215]
[1770188132193,8.13723987,98.211,98.2,77.70197215]
[1770188132390,8.13723987,98.21,98.2,77.70197215]
[1770188132593,8.13723987,98.209,98.2,77.70197215]
[1770188132793,8.13723987,98.208,98.2,77.70197215]
[1770188132994,8.13723987,98.207,98.2,77.70197215]
[1770188133196,8.13723987,98.206,98.2,77.70197215]
[1770188133393,3.31927032,98.22,98.2,77.70197215]
[1770188133795,3.31927032,98.23,98.2,77.70197215]
[1770188134594,9.1746,98.229,98.2,77.70197215]
[1770188135391,9.1746,98.229,98.186,73.80153545]
[1770188140909,9.1755,98.22,98.186,73.80153545]
[1770188141101,9.1755,98.22,98.154,406.18]
[1770188141102,3.31927032,98.21,98.164,73.80153545]
[1770188141603,3.31927032,98.2,98.164,73.80153545]
[1770188141900,9.1766,98.208,98.164,73.80153545]
[1770188143507,73.41002209,98.258,98.191,73.80153545]
[1770188143709,3.32054751,98.25,98.191,73.80153545]
[1770188143906,76.7305696,98.25,98.191,73.80153545]
[1770188144812,9.1738,98.237,98.191,73.80153545]
[1770188145209,76.7305696,98.25,98.191,73.80153545]
[1770188145404,7.56123079,98.249,98.191,73.80153545]
[1770188145609,7.56123079,98.248,98.191,73.80153545]
[1770188145813,7.56123079,98.247,98.191,73.80153545]
[1770188146117,9.1734,98.242,98.191,73.80153545]
[1770188146311,3.32054751,98.25,98.191,73.80153545]
[1770188146312,7.56170193,98.241,98.191,73.80153545]
[1770188146613,3.32054751,98.25,98.191,73.80153545]
[1770188146814,7.56159261,98.249,98.191,73.80153545]
[1770188147114,7.56159261,98.248,98.191,73.80153545]
[1770188147314,7.56159261,98.247,98.194,73.80153545]
[1770188147503,7.56159261,98.246,98.194,73.80153545]
[1770188147711,7.56159261,98.245,98.194,73.80153545]
[1770188147912,7.56159261,98.244,98.194,73.80153545]
[1770188148114,3.32054751,98.25,98.194,73.80153545]
[1770188148313,7.5616654,98.249,98.194,73.80153545]
[1770188148516,9.1726,98.251,98.176,403.08]
[1770188148517,73.41002209,98.264,98.211,73.80153545]
[1770188148709,3.32054751,98.27,98.211,73.80153545]
[1770188148710,7.56032803,98.263,98.211,73.80153545]
[1770188148914,7.56032803,98.262,98.211,73.80153545]
[1770188149107,3.32054751,98.27,98.211,73.80153545]
[1770188149314,3.32054751,98.25,98.215,73.80153545]
[1770188150314,7.56538245,98.249,98.215,73.80153545]
[1770188150515,3.32054751,98.25,98.215,73.80153545]
[1770188150712,7.56538278,98.249,98.215,73.80153545]
[1770188151017,3.32054751,98.25,98.215,73.80153545]
[1770188153315,12.49234751,98.26,98.215,73.80153545]
[1770188153517,7.56711818,98.259,98.215,73.80153545]
[1770188153812,7.56711818,98.258,98.215,73.80153545]
[1770188154018,7.56711818,98.257,98.215,73.80153545]
[1770188154315,7.56711818,98.256,98.215,73.80153545]
[1770188154511,7.56711818,98.255,98.215,73.80153545]
[1770188154712,7.56711818,98.254,98.215,73.80153545]
[1770188154909,3.32054751,98.25,98.215,73.80153545]
[1770188155107,7.56711818,98.249,98.215,73.80153545]
[1770188155308,7.56711818,98.248,98.215,73.80153545]
[1770188155512,7.56711818,98.247,98.215,73.80153545]
[1770188155715,7.56711818,98.246,98.215,73.80153545]
[1770188155913,7.56711818,98.245,98.215,73.80153545]
[1770188156109,7.56711818,98.244,98.215,73.80153545]
[1770188156419,7.56711818,98.243,98.215,73.80153545]
[1770188156624,7.56711818,98.242,98.215,73.80153545]
[1770188156922,3.32054751,98.25,98.215,73.80153545]
[1770188156923,7.56711818,98.241,98.215,73.80153545]
[1770188157124,3.32054751,98.25,98.215,73.80153545]
[1770188157328,7.56842574,98.249,98.215,73.80153545]
[1770188157523,7.56842574,98.248,98.215,73.80153545]
[1770188157712,16.74132574,98.247,98.215,73.80153545]
[1770188158023,7.56842574,98.246,98.215,73.80153545]
[1770188158216,7.56842574,98.245,98.215,73.80153545]
[1770188158417,7.56842574,98.244,98.215,73.80153545]
[1770188158612,7.56842574,98.243,98.215,73.80153545]
[1770188158814,7.56842574,98.242,98.215,73.80153545]
[1770188159120,7.56842574,98.241,98.215,73.80153545]
[1770188159320,7.56842574,98.24,98.215,73.80153545]
[1770188159522,9.1729,98.247,98.215,73.80153545]
[1770188159722,7.5684533,98.246,98.215,73.80153545]
[1770188159926,7.5684533,98.245,98.215,73.80153545]
[1770188160117,7.5684533,98.244,98.215,73.80153545]
[1770188160312,7.5684533,98.243,98.215,73.80153545]
[1770188160520,7.5684533,98.242,98.215,73.80153545]
[1770188160822,7.5684533,98.241,98.215,73.80153545]
[1770188161027,7.5684533,98.24,98.215,73.80153545]
[1770188161221,7.5684533,98.239,98.215,73.80153545]
[1770188161421,7.5684533,98.238,98.215,73.80153545]
[1770188161723,9.1729,98.247,98.215,73.80153545]
[1770188161919,7.5682506,98.246,98.215,73.80153545]
[1770188162120,7.5682506,98.245,98.215,73.80153545]
[1770188162425,3.32054751,98.26,98.215,73.80153545]
[1770188162615,7.56738272,98.259,98.215,73.80153545]
[1770188162814,7.56738272,98.258,98.215,73.80153545]
[1770188163021,3.32054751,98.26,98.215,73.80153545]
[1770188163022,7.56738272,98.257,98.215,73.80153545]
[1770188163222,7.56738272,98.256,98.215,73.80153545]
[1770188163418,7.56738272,98.255,98.215,73.80153545]
[1770188163614,7.56738272,98.254,98.215,73.80153545]
[1770188163814,7.56738272,98.253,98.215,73.80153545]
[1770188164019,76.93612934,98.27,98.215,82.97743545]
[1770188164221,7.56619204,98.269,98.221,77.0079689]
[1770188164420,7.56619204,98.268,98.221,77.0079689]
[1770188164621,76.93612934,98.284,98.231,77.0079689]
[1770188164826,3.32054751,98.28,98.231,77.0079689]
[1770188165019,7.5301722,98.279,98.231,77.0079689]
[1770188165225,7.5301722,98.278,98.231,77.0079689]
[1770188165417,7.5301722,98.277,98.231,77.0079689]
[1770188165624,3.32054751,98.27,98.231,77.0079689]
[1770188165822,7.5301722,98.269,98.231,77.0079689]
[1770188166022,7.5301722,98.268,98.231,77.0079689]
[1770188166316,7.5301722,98.268,98.175,30.56]
[1770188166317,3.32054751,98.25,98.201,77.0079689]
[1770188166517,7.5301722,98.249,98.201,77.0079689]
[1770188166825,7.5301722,98.248,98.201,77.0079689]
[1770188167026,7.5301722,98.247,98.203,77.0079689]
[1770188167326,9.1719,98.258,98.203,77.0079689]
[1770188167530,7.52959987,98.257,98.203,77.0079689]
[1770188167825,7.52959987,98.256,98.213,77.0079689]
[1770188168018,7.52959987,98.255,98.213,77.0079689]
[1770188168326,3.32054751,98.26,98.213,77.0079689]
[1770188168327,7.52959987,98.254,98.213,77.0079689]
[1770188168527,7.52959987,98.253,98.213,77.0079689]
[1770188168726,7.52959987,98.252,98.213,77.0079689]
[1770188168927,3.32054751,98.26,98.213,77.0079689]
[1770188169122,205.12,98.302,98.19,311.02]
[1770188169123,76.93612934,98.295,98.231,77.0079689]
[1770188169331,3.32054751,98.29,98.231,77.0079689]
[1770188170027,80.25667685,98.29,98.231,77.0079689]
[1770188170229,9.1695,98.284,98.231,77.0079689]
[1770188170428,3.32054751,98.27,98.231,77.0079689]
[1770188172026,3.32054751,98.25,98.211,77.0079689]
[1770188173133,3.32054751,98.26,98.216,77.0079689]
[1770188176630,3.32054751,98.26,98.2,3.32054751]
[1770188176631,89.42837685,98.26,98.201,77.0079689]
[1770188176836,3.32054751,98.25,98.201,77.0079689]
[1770188177036,3.32054751,98.24,98.201,77.0079689]
[1770188178339,3.32054751,98.25,98.201,77.0079689]
[1770188181140,7.49458899,98.249,98.201,77.0079689]
[1770188181341,7.49458899,98.248,98.201,77.0079689]
[1770188181637,9.50587403,98.271,98.178,406.14]
[1770188181638,3.32054751,98.27,98.211,75.82226922]
[1770188181841,7.49472691,98.269,98.211,75.82226922]
[1770188182034,7.49472691,98.268,98.211,75.82226922]
[1770188182344,9.1712,98.266,98.213,75.82226922]
[1770188182542,7.49472691,98.265,98.213,75.82226922]
[1770188182745,7.49472691,98.264,98.213,75.82226922]
[1770188182941,7.49472691,98.263,98.213,75.82226922]
[1770188183143,7.49472691,98.262,98.213,75.82226922]
[1770188183343,7.49472691,98.261,98.213,75.82226922]
[1770188183549,7.49472691,98.26,98.213,75.82226922]
[1770188183845,7.49472691,98.259,98.213,75.82226922]
[1770188184046,7.49472691,98.258,98.213,75.82226922]
[1770188184347,7.49472691,98.257,98.213,75.82226922]
[1770188184546,7.49472691,98.256,98.213,75.82226922]
[1770188184746,7.49472691,98.255,98.213,75.82226922]
[1770188185048,7.49472691,98.254,98.213,75.82226922]
[1770188185343,7.49472691,98.253,98.213,75.82226922]
[1770188185543,7.49472691,98.252,98.213,75.82226922]
[1770188185743,7.49472691,98.251,98.213,75.82226922]
[1770188185944,7.49472691,98.25,98.213,75.82226922]
[1770188186144,7.49472691,98.249,98.213,75.82226922]
[1770188186348,9.1712,98.266,98.213,75.82226922]
[1770188186349,7.50018584,98.248,98.213,75.82226922]
[1770188186648,86.36847616,98.266,98.213,75.82226922]
[1770188186849,9.1713,98.264,98.213,75.82226922]
[1770188187054,7.50018645,98.263,98.213,75.82226922]
[1770188187347,7.50018645,98.262,98.213,75.82226922]
[1770188187548,7.50018645,98.261,98.213,75.82226922]
[1770188187848,7.50018645,98.26,98.213,75.82226922]
[1770188188047,7.50018645,98.259,98.213,75.82226922]
[1770188188247,7.50018645,98.258,98.213,75.82226922]
[1770188188450,7.50018645,98.257,98.213,75.82226922]
[1770188188751,7.50018645,98.256,98.213,75.82226922]
[1770188189049,7.50018645,98.255,98.213,75.82226922]
[1770188189248,9.1713,98.264,98.213,75.82226922]
[1770188189249,7.50018645,98.254,98.213,75.82226922]
[1770188189448,7.50018645,98.253,98.213,75.82226922]
[1770188189649,7.50018645,98.252,98.213,75.82226922]
[1770188189850,7.50018645,98.251,98.213,75.82226922]
[1770188190050,7.50018645,98.25,98.213,75.82226922]
[1770188190246,7.50018645,98.249,98.213,75.82226922]
[1770188190548,7.50018645,98.248,98.213,75.82226922]
[1770188190748,7.50018645,98.247,98.213,75.82226922]
[1770188190950,7.50018645,98.246,98.213,75.82226922]
[1770188191145,7.50018645,98.245,98.213,75.82226922]
[1770188191346,7.50018645,98.244,98.213,75.82226922]
[1770188191550,7.50018645,98.243,98.213,75.82226922]
[1770188191750,9.1713,98.264,98.213,75.82226922]
[1770188191946,7.50961302,98.263,98.213,75.82226922]
[1770188192141,7.50961302,98.262,98.213,75.82226922]
[1770188192342,7.50961302,98.261,98.213,75.82226922]
[1770188192541,7.50961302,98.26,98.213,75.82226922]
[1770188192743,7.50961302,98.259,98.213,75.82226922]
[1770188192942,7.50961302,98.258,98.213,75.82226922]
[1770188193142,7.50961302,98.257,98.213,75.82226922]
[1770188193354,7.50961302,98.256,98.215,75.82226922]
[1770188193651,77.19727616,98.266,98.215,75.82226922]
[1770188193652,7.50961302,98.255,98.215,75.82226922]
[1770188193944,7.50961302,98.254,98.215,75.82226922]
[1770188194150,7.50961302,98.253,98.215,75.82226922]
[1770188194351,7.50961302,98.252,98.215,75.82226922]
[1770188194648,7.50961302,98.251,98.215,75.82226922]
[1770188194850,7.50961302,98.25,98.218,75.82226922]
[1770188195049,3.32054751,98.26,98.218,75.82226922]
[1770188195050,7.50961302,98.249,98.218,75.82226922]
[1770188195349,7.50961302,98.248,98.218,75.82226922]
[1770188195552,7.50961302,98.247,98.218,75.82226922]
[1770188195746,7.50961302,98.246,98.218,75.82226922]
[1770188195946,7.50961302,98.245,98.218,75.82226922]
[1770188196143,7.50961302,98.244,98.218,75.82226922]
[1770188196355,7.50961302,98.243,98.218,75.82226922]
[1770188196555,3.32054751,98.26,98.218,75.82226922]
[1770188196755,7.49592388,98.259,98.218,75.82226922]
[1770188196951,7.49592388,98.258,98.218,75.82226922]
[1770188197152,7.49592388,98.257,98.218,75.82226922]
[1770188197355,3.32054751,98.24,98.204,75.82226922]
[1770188197554,7.49592388,98.239,98.204,75.82226922]
[1770188197755,7.49592388,98.238,98.204,75.82226922]
[1770188198053,7.49592388,98.237,98.204,75.82226922]
[1770188198251,7.49592388,98.236,98.204,75.82226922]
[1770188198458,12.59785918,98.269,98.172,406.14]
[1770188198459,3.32054751,98.28,98.231,75.82226922]
[1770188204458,3.31611357,98.28,98.231,75.82226922]
[1770188205357,9.50587403,98.288,98.22,3.31611357]
[1770188205358,77.19727616,98.287,98.237,75.82226922]
[1770188205559,176.2165058,98.714,98.241,75.82226922]
[1770188205560,9.50587403,98.298,98.241,75.82226922]
[1770188205755,3.31611357,98.3,98.241,75.82226922]
[1770188206364,3.31611357,98.29,98.241,75.82226922]
[1770188208667,80.51338973,98.3,98.245,75.82226922]
[1770188209461,3.31611357,98.29,98.248,75.82226922]
[1770188210459,7.44641779,98.289,98.248,75.82226922]
[1770188210762,7.44641779,98.288,98.248,75.82226922]
[1770188211060,7.44641779,98.287,98.248,75.82226922]
[1770188211264,3.31611357,98.29,98.248,75.82226922]
[1770188211265,7.44641779,98.286,98.248,75.82226922]
[1770188211566,7.44641779,98.285,98.248,75.82226922]
[1770188211768,76.37595335,98.27,98.232,75.85417607]
[1770188211967,3.31611357,98.26,98.232,75.85417607]
[1770188212261,3.31611357,98.27,98.232,75.85417607]
[1770188212462,7.44685694,98.269,98.232,75.85417607]
[1770188212667,3.31611357,98.26,98.232,75.85417607]
[1770188212869,7.44685694,98.259,98.232,75.85417607]
[1770188213161,7.44685694,98.258,98.232,75.85417607]
[1770188213361,7.44685694,98.257,98.232,75.85417607]
[1770188213558,3.31611357,98.25,98.219,75.85417607]
[1770188213758,7.44685694,98.249,98.219,75.85417607]
[1770188213959,7.44685694,98.248,98.219,75.85417607]
[1770188214164,3.31611357,98.25,98.219,75.85417607]
[1770188214364,7.44793411,98.249,98.219,75.85417607]
[1770188214568,3.31611357,98.24,98.219,75.85417607]
[1770188215368,3.31611357,98.25,98.219,75.85417607]
[1770188215569,7.44811093,98.249,98.219,75.85417607]
[1770188215863,7.44811093,98.248,98.219,75.85417607]
[1770188216069,7.44811093,98.247,98.219,75.85417607]
[1770188216266,3.31611357,98.25,98.219,75.85417607]
[1770188216463,7.44796125,98.249,98.219,75.85417607]
[1770188216663,7.44796125,98.248,98.219,75.85417607]
[1770188216868,7.44796125,98.247,98.219,75.85417607]
[1770188217068,3.31611357,98.25,98.219,75.85417607]
[1770188217267,7.44782632,98.249,98.219,75.85417607]
[1770188217467,7.44782632,98.248,98.219,75.85417607]
[1770188217665,3.31611357,98.25,98.219,75.85417607]
[1770188217870,7.44782019,98.249,98.219,75.85417607]
[1770188218070,7.44782019,98.248,98.219,75.85417607]
[1770188218271,7.44782019,98.247,98.219,75.85417607]
[1770188218472,7.44782019,98.246,98.219,75.85417607]
[1770188218666,73.05983978,98.259,98.219,75.85417607]
[1770188218874,7.44769639,98.258,98.219,75.85417607]
[1770188219176,73.05983978,98.259,98.219,75.85417607]